Cogmind - Beta 13 @@@ ROGUE MODE // 2024.07.25 @ 02:59:09 Player: celerysam Result: Destroyed by Y-45 Defender with Heavy Assault Rifle Performance ------------- Evolutions (2) 1000 Regions Visited (6) 1200 Robots Destroyed (19) 95 Value Destroyed (477) 477 Prototype IDs (1) 20 Alien Tech Used (0) 0 Bonus (82) 82 TOTAL SCORE: 2874 Bonus ------- High Alert Combat Kills 11 Follower Combat Kills 113 Friendly Fire -42 Cogmind --------- Core Integrity 0/550 Matter 8/300 Energy 28/100 System Corruption 0% Temperature Warm (121) Movement Rolling (100) Location -8/Storage Parts ------- > --- POWER (2) -------- (None) > --- PROPULSION (4) --- Compact Wheel > --- UTILITY (3) ------ Medium Storage Unit Advanced Visual Processing Unit > --- WEAPON (2) ------- EMP Blaster Mini Grenade Launcher > --- INVENTORY (10) --- Improved Cooling System Sensor Array Shock Rifle Flak Cannon Improved Datajack Peak State ------------ > --- POWER ------------ Improved Ion Engine Reinforced Deuterium Engine > --- PROPULSION ------- Improved Titanium Leg Improved Titanium Leg Improved Titanium Leg Improved Titanium Leg > --- UTILITY ---------- Medium Storage Unit Advanced Visual Processing Unit Shield Generator > --- WEAPON ----------- Beam Rifle Rocket Launcher > --- INVENTORY -------- Light Treads Compact Wheel Compact Wheel Improved Cooling System Sensor Array Terrain Scan Processor Heavy Particle Gun Flak Cannon EMP Blaster Datajack [Rating: 34] Favorites ----------- Power Improved Ion Engine Engine Improved Ion Engine Propulsion Improved Titanium Leg Treads Light Treads Leg Improved Titanium Leg Wheel Compact Wheel Utility Medium Storage Unit Device Shield Generator Storage Medium Storage Unit Processor Advanced Visual Processing Unit Protection Propulsion Shielding Weapon Beam Rifle Energy Gun Beam Rifle Ballistic Gun Assault Rifle Launcher Rocket Launcher Special Melee Weapon Datajack Build | -11 -10 -10 -9 -9 -8 -8 ------- Run | Yrd Mat Min Mat Min Mat Sto Slots Evolved 4 | . . . 2 . 2 . Power 1 | . . . . . 1 . Propulsion 2 | . . . 2 . . . Utility 1 | . . . . . 1 . Weapon . | . . . . . . . Parts Attached 32 | 4 7 . 6 2 8 5 Power 6 | . 2 . 1 . 3 . Engine 6 | . 2 . 1 . 3 . Core . | . . . . . . . Reactor . | . . . . . . . Propulsion 12 | 2 2 . 1 1 4 2 Treads 3 | 2 . . . 1 . . Leg 7 | . 2 . 1 . 4 . Wheel 2 | . . . . . . 2 Hover . | . . . . . . . Flight . | . . . . . . . Utility 5 | 1 1 . 2 . 1 . Device 1 | . . . 1 . . . Storage 2 | 1 . . 1 . . . Processor 1 | . . . . . 1 . Hackware . | . . . . . . . Protection 1 | . 1 . . . . . Artifact . | . . . . . . . Weapon 9 | 1 2 . 2 1 . 3 Energy Gun 3 | . 1 . . 1 . 1 Energy Cannon . | . . . . . . . Ballistic Gun 2 | 1 1 . . . . . Ballistic Cannon . | . . . . . . . Launcher 3 | . . . 1 . . 2 Special Weapon . | . . . . . . . Impact Weapon . | . . . . . . . Slashing Weapon . | . . . . . . . Piercing Weapon . | . . . . . . . Special Melee Weapon 1 | . . . 1 . . . Unidentified Prototypes 1 | . . . . . . 1 Parts Lost 14 | . . 3 . . 1 10 Power 2 | . . . . . . 2 Propulsion 5 | . . . . . . 5 Utility 2 | . . 1 . . . 1 Weapon 5 | . . 2 . . 1 2 Highest Loss Streak 9 | . . 3 . . 1 9 To Critical Strikes . | . . . . . . . Average Slot Usage (%) 88 | . 95 75 73 96 97 80 Engine 14 | . 12 14 11 11 17 15 Treads 1 | . 2 . . 8 . . Leg 31 | . 25 28 33 33 35 31 Device 6 | . . . 9 11 9 4 Storage 11 | . 14 14 11 11 9 9 Processor 3 | . . . . . 8 9 Protection 3 | . 12 6 . . . . Energy Gun 7 | . 12 5 . 8 9 9 Ballistic Gun 3 | . 14 5 . . . . Launcher 4 | . . . 3 11 7 . Special Melee Weapon 1 | . . . 4 2 . . Naked Turns . | . . . . . . . Heaviest Build 41 | 6 15 15 24 26 41 38 Greatest Support 80 | 40 40 20 30 30 80 80 Greatest Overweight (x) 1 | 1 . . . . . . Average Overweight (x) . | . . . . . . . Largest Inventory Capacity 10 | 8 8 8 10 10 10 10 Average Capacity 9 | 7 8 8 9 10 10 10 Most Carried 10 | 8 8 8 10 10 10 10 Average Carried 8 | 6 7 8 9 9 9 9 Final Capacity 10 | 8 8 8 10 10 10 10 Final Carried 10 | 8 8 8 10 10 10 5 Class Distribution -------------------- 100% | Mutant Dominant Class ---------------- Mutant | -10/Materials Mutant | -10/Mines Mutant | -9/Materials Mutant | -9/Mines Mutant | -8/Materials Mutant | -8/Storage Resources | -11 -10 -10 -9 -9 -8 -8 ----------- Run | Yrd Mat Min Mat Min Mat Sto Matter Collected 313 | 240 . . . 26 47 . Remotely . | . . . . . . . Salvage Created 647 | . 89 . 84 . 454 20 Parts 40 | . 3 . 9 . 21 7 Haulers Intercepted 1 | . . . . . 1 . Recyclers Shooed . | . . . . . . . Parts Field Recycled . | . . . . . . . Retrieved Matter . | . . . . . . . Parts Self-Destructed . | . . . . . . . Prevented . | . . . . . . . Kills | -11 -10 -10 -9 -9 -8 -8 ------- Run | Yrd Mat Min Mat Min Mat Sto Combat Hostiles Destroyed 9 | . 2 . 3 . 4 . Guns 3 | . 2 . . . 1 . AOE 6 | . . . 3 . 3 . Classes Destroyed 8 | . 1 . 3 . 3 1 Worker 2 | . . . . . 2 . Builder 1 | . . . . . . 1 Hauler 1 | . . . . . 1 . Recycler 5 | . . . 1 . 4 . Watcher 1 | . . . 1 . . . Swarmer 3 | . . . 3 . . . Grunt 4 | . 2 . . . 2 . Sentry 2 | . . . . . 2 . Best Kill Streak 8 | . 2 . 4 . 8 1 Combat Bots Only 3 | . 2 . 3 . 3 . Max Kills in Single Turn 5 | . 1 . 4 . 5 1 Gunslinging . | . . . . . . . Exploded 3 | . . . 3 . 1 . Melee . | . . . . . . . Uniques/NPCs Destroyed . | . . . . . . . Combat | -11 -10 -10 -9 -9 -8 -8 -------- Run | Yrd Mat Min Mat Min Mat Sto Hostile Shots Fired 238 | . 6 32 6 . 50 144 Missed 72 | . 3 12 2 . 18 37 Damage Taken 2643 | . 35 560 24 33 442 1549 Core 660 | . . 99 . 11 . 550 Absorbed by Shields 192 | . . . 10 12 167 3 Redirected to Shielding 52 | . . 52 . . . . Core Remaining (%) 85 | 100 . 60 . 97 . . Volleys Fired 36 | . 4 1 3 1 12 15 Largest 2 | . 2 2 1 1 2 2 Hottest 111 | . 70 70 33 33 89 111 Shots Fired 52 | . 8 2 3 1 21 17 Gun 38 | . 8 2 . . 12 16 Cannon . | . . . . . . . Launcher 14 | . . . 3 1 9 1 Special . | . . . . . . . Kinetic 5 | . 4 1 . . . . Thermal 33 | . 4 1 . . 12 16 Explosive 13 | . . . 3 1 9 . Electromagnetic 1 | . . . . . . 1 Robot Hit Streak 5 | . 4 1 2 . 3 5 Robot Miss Streak 3 | . 2 1 1 1 3 2 Penetration Max . | . . . . . . . Secondary Targets 1 | . 1 . . . . . Max Gunslinging Chain 1 | . 1 . . . . . Shots Hit Robots 25 | . 5 1 3 . 7 9 Core Hits 31 | . 4 1 4 2 16 4 Critical Kills . | . . . . . . . Critical Parts Destroyed . | . . . . . . . Critical Strikes 1 | . . . . . 1 . Burn 1 | . . . . . 1 . Melee Attacks 1 | . . . 1 . . . Impact . | . . . . . . . Slashing . | . . . . . . . Piercing . | . . . . . . . Sneak Attacks 1 | . . . 1 . . . Combat Hostiles . | . . . . . . . Follow-up Attacks . | . . . . . . . Damage Inflicted 1420 | . 65 11 232 65 827 220 Guns 318 | . 65 11 . . 73 169 Cannons . | . . . . . . . Explosions 1093 | . . . 232 65 754 42 Melee . | . . . . . . . Ramming 9 | . . . . . . 9 Kinetic 37 | . 26 11 . . . . Thermal 596 | . 39 . . . 388 169 Explosive 736 | . . . 232 65 439 . Electromagnetic 42 | . . . . . . 42 Impact . | . . . . . . . Slashing . | . . . . . . . Piercing . | . . . . . . . Highest Corruption . | . . . . . . . Average Corruption . | . . . . . . . Corruption Purged . | . . . . . . . Corruption Blocked . | . . . . . . . Overload Shots . | . . . . . . . Overflow Damage 76 | . . . 13 . 63 . Projectiles . | . . . . . . . Explosions 76 | . . . 13 . 63 . Melee . | . . . . . . . Knockbacks . | . . . . . . . Impact . | . . . . . . . Kinetic . | . . . . . . . Secondary . | . . . . . . . Self-Inflicted Damage 148 | . . . . 45 101 2 Shots 4 | . . . . 1 3 . Rammed 1 | . . . . . . 1 Targets Rammed 3 | . . . . . . 3 Kicked 2 | . . . . . . 2 Crushed . | . . . . . . . Highest Temperature 312 | . 39 9 . . 150 312 Average Temperature 122 | . 18 5 . . 53 192 Received Heat Transfer 1108 | . 18 40 . . 132 918 Effects 2 | . . . . . . 2 Energy Bleed 1 | . . . . . . 1 Matter Decay 1 | . . . . . . 1 Siege Activations . | . . . . . . . Robots Corrupted . | . . . . . . . Combat Hostiles . | . . . . . . . Parts Fried . | . . . . . . . Impact Corruptions . | . . . . . . . Robots Melted . | . . . . . . . Combat Hostiles . | . . . . . . . Parts Melted 1 | . . . . . 1 . Heat Transferred 990 | . 111 . . . 509 370 Parts Sabotaged . | . . . . . . . Parts Stolen . | . . . . . . . Parts Stripped . | . . . . . . . Power Chain Reactions . | . . . . . . . Alert | -11 -10 -10 -9 -9 -8 -8 ------- Run | Yrd Mat Min Mat Min Mat Sto Peak Influence 536 | . 80 31 120 80 536 246 Initial 226 | . . 31 . 46 31 226 Average 149 | . 24 13 9 72 394 223 Maximum Alert Level 2 | . . . . . 2 1 Low Security (%) 69 | 100 100 100 100 100 27 10 Level 1 12 | . . . . . 1 89 Level 2 18 | . . . . . 71 . Level 3 . | . . . . . . . Level 4 . | . . . . . . . Level 5 . | . . . . . . . High Security . | . . . . . . . Max Security . | . . . . . . . Squads Dispatched 11 | . 1 . . . 5 5 Investigation 3 | . 1 . . . 1 1 Extermination . | . . . . . . . Reinforcement 5 | . . . . . 2 3 Assault 1 | . . . . . 1 . Garrison 2 | . . . . . 1 1 Intercept . | . . . . . . . Searches Triggered . | . . . . . . . Construction Impeded 1 | . . . . . . 1 Haulers Reinforced . | . . . . . . . Active Scanning Responses . | . . . . . . . Cargo Convoy Interrupts . | . . . . . . . Stealth | -11 -10 -10 -9 -9 -8 -8 --------- Run | Yrd Mat Min Mat Min Mat Sto Distress Signals 3 | . . . . . 1 2 Communications Jammed . | . . . . . . . Distress Signals . | . . . . . . . Times Spotted 64 | . 6 8 4 1 20 25 Peak Tracking Total 22 | . 2 8 3 1 8 22 Tactical Retreats . | . . . . . . . Traps | -11 -10 -10 -9 -9 -8 -8 ------- Run | Yrd Mat Min Mat Min Mat Sto Traps Triggered 3 | . 1 . . . 1 1 Indirectly . | . . . . . . . Trap Hack Attempts . | . . . . . . . Triggered . | . . . . . . . Disarmed . | . . . . . . . Reprogrammed . | . . . . . . . Reused . | . . . . . . . Traps Extracted . | . . . . . . . Installed . | . . . . . . . Triggered . | . . . . . . . Machines | -11 -10 -10 -9 -9 -8 -8 ---------- Run | Yrd Mat Min Mat Min Mat Sto Machines Disabled 7 | . . . 1 1 5 . Max in Single Turn 3 | . . . 1 1 3 . Garrison Access 1 | . . . . . 1 . Machines Repaired . | . . . . . . . Machines Dismantled . | . . . . . . . Machines Sabotaged . | . . . . . . . Overloaded Fab Kills . | . . . . . . . Hacking | -11 -10 -10 -9 -9 -8 -8 --------- Run | Yrd Mat Min Mat Min Mat Sto Machines Accessed . | . . . . . . . Terminals . | . . . . . . . Fabricators . | . . . . . . . Repair Stations . | . . . . . . . Recycling Units . | . . . . . . . Scanalyzers . | . . . . . . . Garrison Access . | . . . . . . . Total Hacks . | . . . . . . . Successful . | . . . . . . . Failed . | . . . . . . . Catastrophic . | . . . . . . . Database Lockouts . | . . . . . . . Manual . | . . . . . . . Terminals . | . . . . . . . Fabricators . | . . . . . . . Repair Stations . | . . . . . . . Recycling Units . | . . . . . . . Scanalyzers . | . . . . . . . Garrison Access . | . . . . . . . Terminal Hacks . | . . . . . . . Fabricator Hacks . | . . . . . . . Repair Station Hacks . | . . . . . . . Recycling Unit Hacks . | . . . . . . . Scanalyzer . | . . . . . . . Garrison Access Hacks . | . . . . . . . Unauthorized Hacks . | . . . . . . . Terminals . | . . . . . . . Fabricators . | . . . . . . . Repair Stations . | . . . . . . . Recycling Units . | . . . . . . . Scanalyzers . | . . . . . . . Garrison Access . | . . . . . . . Data Cores Recovered . | . . . . . . . Used . | . . . . . . . Hacking Detections . | . . . . . . . Full Trace Events . | . . . . . . . Feedback Events . | . . . . . . . Feedback Blocked . | . . . . . . . Robot Schematics Acquired . | . . . . . . . Robots Built . | . . . . . . . Authchips . | . . . . . . . Time . | . . . . . . . Total Robot Build Rating . | . . . . . . . Part Schematics Acquired . | . . . . . . . Parts Built . | . . . . . . . Authchips . | . . . . . . . Time . | . . . . . . . Total Part Build Rating . | . . . . . . . Parts Repaired . | . . . . . . . Time . | . . . . . . . Parts Recycled . | . . . . . . . Recycled Matter . | . . . . . . . Retrieved Matter . | . . . . . . . Retrieved Components . | . . . . . . . Parts Scanalyzed . | . . . . . . . Part Schematics Acquired . | . . . . . . . Parts Damaged . | . . . . . . . Bothacking | -11 -10 -10 -9 -9 -8 -8 ------------ Run | Yrd Mat Min Mat Min Mat Sto Used RIF Installer . | . . . . . . . Robots Hacked 1 | . . . 1 . . . Non-combat 1 | . . . 1 . . . Combat . | . . . . . . . Robot Hacks Applied 1 | . . . 1 . . . no_distress 1 | . . . 1 . . . Relay Couplers Released 3 | . . . . . 3 . Machine Destruction 3 | . . . . . 3 . Fabnet Peak Effective % . | . . . . . . . Robots Rewired . | . . . . . . . Allies Hacked . | . . . . . . . Hacks Repelled . | . . . . . . . Allies | -11 -10 -10 -9 -9 -8 -8 -------- Run | Yrd Mat Min Mat Min Mat Sto Total Allies 1 | . . . . 1 . . Largest Group 1 | . . . . 1 1 . Highest-Rated Group 31 | . . . . 31 31 . Highest-Rated Ally 31 | . . . . 31 31 . Total Orders . | . . . . . . . Ally Attacks 17 | . . . . 1 16 . Total Damage 209 | . . . . 20 189 . Kills 3 | . . . . 1 2 . Allies Corrupted . | . . . . . . . Allies Melted . | . . . . . . . Intel | -11 -10 -10 -9 -9 -8 -8 ------- Run | Yrd Mat Min Mat Min Mat Sto Robot Analysis Total . | . . . . . . . Derelict Logs Recovered 2 | . . 1 . 1 . . Drone Launches . | . . . . . . . Drone Recoveries . | . . . . . . . Exploration | -11 -10 -10 -9 -9 -8 -8 ------------- Run | Yrd Mat Min Mat Min Mat Sto Turns Passed 1434 | 82 241 149 205 188 377 192 Spaces Moved 975 | 55 178 92 151 133 250 116 Core 29 | 29 . . . . . . Treads 37 | 26 11 . . . . . Legs 901 | . 167 92 151 133 250 108 Wheels 8 | . . . . . . 8 Hover . | . . . . . . . Flight . | . . . . . . . Fastest Speed 50 | 50 120 120 120 120 120 100 Average Speed 123 | 124 122 120 120 120 129 127 Slowest Speed 160 | 160 160 120 120 120 130 130 Overloaded Moves . | . . . . . . . Propulsion Burnouts . | . . . . . . . Robots Hopped . | . . . . . . . Cave-ins Triggered . | . . . . . . . Exploration Rate (%) 26 | 5 27 38 15 37 33 32 Regions Visited 6 Branch Regions 3 Pre-discovered Areas 1 | . . 1 . . . . Known Exits Taken . | . . . . . . . Unknown Exits Taken 6 | 1 1 1 1 1 1 . Scrap Searched 1 | . . . . 1 . . Spaces Dug . | . . . . . . . Terrain Destroyed 126 | . . . 24 13 89 . Melee . | . . . . . . . Projectile . | . . . . . . . AOE 126 | . . . 24 13 89 . Terrain Rammed . | . . . . . . . Walls Destroyed . | . . . . . . . Machines Disabled . | . . . . . . . Actions | -11 -10 -10 -9 -9 -8 -8 --------- Run | Yrd Mat Min Mat Min Mat Sto Total 1146 | 67 190 128 171 160 287 143 Wait 66 | . . 36 . 24 6 . Move 969 | 54 177 91 150 132 249 116 Hop . | . . . . . . . Pick Up 25 | 9 2 . 7 1 4 2 Fast Attach 8 | 3 1 . 3 . 1 . Attach 13 | 1 2 . 2 1 2 5 Detach . | . . . . . . . Swap 11 | . 4 . 1 1 5 . Drop 14 | . . . 4 . 8 2 Fire 36 | . 4 1 3 1 12 15 Melee 1 | . . . 1 . . . Ram 1 | . . . . . . 1 Kick 2 | . . . . . . 2 Crush . | . . . . . . . Escape Stasis . | . . . . . . . Rewire . | . . . . . . . Trap . | . . . . . . . Miscellaneous . | . . . . . . . Route ------- -11/Scrapyard -10/Materials -10/Mines -9/Materials -9/Mines -8/Materials -8/Storage History --------- Turn | Location | Event 11 | -11/Scrapyard | Discovered new exit (range 15) 83 | -11/Scrapyard | Entered Materials 307 | -10/Materials | Discovered new exit (range 8) 309 | -10/Materials | Build established: Mutant 324 | -10/Materials | Entered Mines 358 | -10/Mines | Assembled infested the area 421 | -10/Mines | Lost 3 parts (1u2w) 449 | -10/Mines | Learned location of Storage (-8) 453 | -10/Mines | Discovered new exit (range 10) 473 | -10/Mines | Entered Materials 473 | -9/Materials | Evolved 2 slots: Propulsion x2 618 | -9/Materials | Discovered new exit (range 14) 678 | -9/Materials | Entered Mines 681 | -9/Mines | Received a Mining Laser from a helpful Derelict 714 | -9/Mines | Joined a pair of Derelicts in attacking an 0b10 outpost 843 | -9/Mines | Discovered new exit (range 14) 852 | -9/Mines | Learned Materials security intel 866 | -9/Mines | Entered Materials 866 | -8/Materials | Accompanied by 1 ally 866 | -8/Materials | Evolved 2 slots: Power x1, Utility x1 962 | -8/Materials | Garrison activated, responded to threat 1228 | -8/Materials | Discovered new exit (range 12) 1243 | -8/Materials | Entered Storage 1414 | -8/Storage | Garrison activated, responded to threat 1421 | -8/Storage | Core integrity fell below 50% 1430 | -8/Storage | Core integrity fell below 20% 1435 | -8/Storage | Destroyed by Y-45 Defender with Heavy Assault Rifle Last Messages --------------- 01417_ C-30 ARC bursts open, deploying its payload. 01417_ G-50 Soldier unfolds itself. 01417_ G-47 Trooper unfolds itself. 01418_ W-25 Informer sends out distress signal. 01418_ O-16 Technician: "IFF HANDSHAKE FAILED. SECURING TERMINAL." 01419_ Hvy. Particle Gun destroyed. 01419_ Critical hit (Burn: +37). 01420_ K-01 Serf collects debris. 01421_ Critical hit (Burn: +37). 01422_ Overheating: Matter decay (-4). 01422_ Slammed into K-01 Serf. 01423_ Imp. Titanium Leg destroyed. 01425_ ALERT: Hostiles spotted, dispatching reinforcements to Terminal S012. 01425_ T-07 Excavator is excavating. 01427_ K-01 Serf collects debris. 01428_ U-05 Engineer destroyed. 01430_ Com. Wheel destroyed. 01430_ K-01 Serf collects debris. 01435_ S-10 Pest destroyed. Map ----- +----------------------------------------------------+ | | | | | | | | | | | ?????????????????????????????????????????????????? | | ?????????????????????????????????????????????????? | | ?????????????????????????????????????????????????? | | ?????????????????????????????????????????????????? | | ?????????????????????????????????????????????????? | | ?????????????????????????????????????????????????? | | ?????????????????????????????????????????????????? | | ?????????????????????????????????????????????????? | | ?????????????????????????????????????????????????? | | ?????????????????????????????????????????????????? | | ?????????????????????????????????????????????????? | | ?????????????????????????????????????????????????? | | ?????????????????????????????????????????????????? | | ?????????????????????????????????????????????????? | | ?????????????????????????????????????????????????? | | ?????????????????????????????????????????????????? | | ?????????????????????????????????????????????????? | | ?????????????????????????????????????????????????? | | ?????????????????????###?????????????????????????? | | ???????????????????### ######????????????????????? | | ???????????????????# % @ #????????????????????? | | ?###/#########+#####Ysg=""" #????????????????????? | | " #g!g """ ##???????????????????? | | "g ggggg""" + ???????????????? | | g #!== g a ##### ???????????????? | | ????+#############/# """ #????????????????????? | | ?????????# # """ #????????????????????? | | ?????????# # """ #????????????????????? | | ?????????# # #????????????????????? | | ?????????#"""" ##########????????????????????? | | ?????????#"""" #?????????????????????????????? | | ?????????#"""" #????????????? ?????????????? | | ?????????#"""" ########### [ ???####??????? | | ?????????# / + ????? #??????? | | ##############+## #????????? #??????? | | #????????? #??????? | | #????????# #??????? | | ##### #????????# ^+??????? | | ##############/######???# #????????# #??????? | | ?????????????# ] #????# #????????# #??????? | | ?????????????# """ ###### #????????# #??????? | | ?????????????# """ # = # #????????# #??????? | | ?????????????# """ # + #????????# #??????? | | ?????????????# #! # #????????# #??????? | | ????????????## """ # # ########## #??????? | +----------------------------------------------------+ Best States ------------- Heat Dissipation 31 Energy Generation 23 Energy Capacity 455 Matter Stores 300 Matter Capacity 300 Sight Range 20 Terrain Scan Density 10 Propulsion Shielding 33 Evasion (%) 55 Recoil Reduction 2 Item Schematics ----------------- None Robot Schematics ------------------ None Fabricated ------------ Nothing Alien Tech Used ----------------- None Achievements -------------- None Challenges ------------ None Game ------ Seed SystemAssaultAutobeam Manual? 0 Play Time 00:23:36 Cumulative 111.2 hours Start 2024.07.25 @ 01:34:20 End 2024.07.25 @ 02:59:09 Sessions 1 Manual Loads 0 Difficulty Rogue Special Mode None Game No. 158 Rogue 158 Adventurer 0 Explorer 0 Win Type - Total 0 Types 0/0/0/0/0/0/0/0/0 Lore% 46 Gallery% 58 Achievement% 37 Wizard Run 0 Options --------- Layout 0 ASCII 0 Keyboard 0 Movement Mouse Keybinds 0 Fullscreen 1 Font 24/Smallcaps Map View 76x50 Zoom Use 0% Tactical HUD 1 Map Filters NONE Filters NONE Steam 1 RUN: 08173f3f-9587-41a6-ad12-1f581f1830cb